bitfinex/quotes_ETHUSD_20240703
["timestamp","ask_amount","ask_price","bid_price","bid_amount"]
[1720015722922,10.62428019,3325.6,3325.4,0.93585897]
[1720015723272,10.62428019,3325.6,3325.3,0.93585897]
[1720015723273,3.0,3325.5,3325.3,0.93585897]
[1720015723492,3.0,3325.5,3325.2,0.93585897]
[1720015724307,3.0,3325.5,3325.0,0.93585897]
[1720015724490,3.0,3325.5,3325.1,0.93585897]
[1720015725522,9.730362,3325.4,3324.9,0.93585897]
[1720015725669,3.0,3325.5,3324.8,0.93585897]
[1720015725874,3.0,3325.5,3324.6,0.93585897]
[1720015726283,3.0,3325.5,3324.5,8.43295897]
[1720015726509,3.0,3325.5,3324.6,0.93585897]
[1720015726705,3.36966651,3325.6,3324.6,0.93585897]
[1720015726882,0.55,3325.5,3324.5,8.43295897]
[1720015727084,0.55,3325.5,3324.6,0.93585897]
[1720015727285,0.55,3325.5,3324.5,8.43295897]
[1720015727589,3.0,3325.6,3324.5,8.43295897]
[1720015727985,3.0,3325.6,3324.6,0.93585897]
[1720015728199,3.0,3325.6,3324.8,0.93585897]
[1720015728577,3.0,3325.6,3324.9,0.93585897]
[1720015729180,3.0,3325.6,3324.7,1.24781197]
[1720015729181,3.0,3325.6,3324.7,0.93585897]
[1720015730321,3.0,3325.6,3324.5,8.43295897]
[1720015731326,3.0,3325.6,3324.5,7.4971]
[1720015734914,3.0,3325.6,3324.0,7.1737]
[1720015735707,0.55,3325.5,3324.0,7.1737]
[1720015736535,1.813,3325.4,3323.5,7.75195897]
[1720015736721,0.55,3325.3,3323.5,6.8161]
[1720015737253,2.363,3325.3,3323.5,6.8161]
[1720015737455,5.363,3325.3,3323.5,6.8161]
[1720015739955,1.813,3325.0,3323.5,6.8161]
[1720015740157,2.363,3324.9,3323.5,6.8161]
[1720015740463,7.32,3324.8,3323.5,6.8161]
[1720015740660,0.55,3324.7,3323.5,6.8161]
[1720015740956,3.55,3324.7,3323.5,6.8161]
[1720015742258,3.0,3324.7,3323.5,7.49771]
[1720015742490,3.0,3324.7,3323.5,6.8161]
[1720015743641,5.666,3324.7,3323.1,7.2744]
[1720015743844,0.55,3324.6,3323.1,7.2744]
[1720015744426,3.0,3324.7,3323.1,9.10184]
[1720015744932,3.0,3324.7,3323.3,1.0]
[1720015745276,3.0,3324.7,3323.4,2.666]
[1720015745427,3.0,3324.7,3323.5,1.0]
[1720015745871,3.0,3324.7,3323.7,1.0]
[1720015746442,3.0,3324.7,3323.5,1.0]
[1720015746677,3.0,3324.7,3323.5,0.46020259]
[1720015746964,3.0,3324.7,3323.3,4.60202594]
[1720015747535,3.0,3324.7,3323.3,2.666]
[1720015747731,3.0,3324.7,3323.2,0.93602594]
[1720015748041,3.0,3324.7,3323.1,7.2744]
[1720015748042,0.55,3324.6,3323.1,7.2744]
[1720015748248,2.363,3324.6,3323.1,7.2744]
[1720015748472,11.029,3324.6,3322.8,2.666]
[1720015748663,7.32,3324.3,3322.8,2.666]
[1720015748872,3.0,3324.2,3322.7,7.4269]
[1720015749073,0.55,3324.1,3322.7,7.4269]
[1720015749592,2.363,3324.1,3322.3,0.93619422]
[1720015749730,2.363,3324.1,3322.2,11.74519422]
[1720015751282,3.0,3324.2,3322.3,1.17451942]
[1720015751475,3.0,3324.2,3322.6,2.666]
[1720015751884,3.0,3324.2,3322.5,5.49119422]
[1720015752380,3.0,3324.2,3322.7,1.0]
[1720015752550,3.0,3324.2,3322.8,0.19361942]
[1720015752969,3.0,3324.2,3323.0,7.2756]
[1720015753475,7.32,3324.3,3323.3,1.0]
[1720015755398,7.32,3324.3,3323.1,0.93619422]
[1720015755543,7.32,3324.3,3323.0,8.21179422]
[1720015755742,7.32,3324.3,3323.0,7.2756]
[1720015756677,7.32,3324.3,3322.9,0.93619422]
[1720015756891,3.55,3324.2,3322.7,0.93619422]
[1720015757042,3.55,3324.2,3322.6,4.49119422]
[1720015757244,3.55,3324.2,3322.6,2.21777954]
[1720015757555,3.55,3324.2,3322.6,0.93619422]
[1720015757736,3.55,3324.2,3322.5,7.0764]
[1720015757737,3.55,3324.2,3322.5,8.01259422]
[1720015758137,8.363,3324.2,3322.5,8.01259422]
[1720015758337,8.363,3324.2,3322.3,0.93619422]
[1720015758640,8.67773281,3324.2,3322.2,0.93619422]
[1720015758945,8.67773281,3324.2,3322.2,1.86490954]
[1720015759385,7.32,3323.8,3322.2,1.86490954]
[1720015759544,3.0,3323.7,3322.2,1.86490954]
[1720015760385,3.0,3323.7,3322.2,0.92871532]
[1720015763398,3.0,3323.7,3322.3,0.28649095]
[1720015766063,3.0,3323.7,3322.3,1.28649095]
[1720015766481,3.0,3323.7,3322.5,1.0]
[1720015766954,3.0,3323.7,3322.3,0.28649095]
[1720015767783,7.32,3323.8,3322.4,7.4194]
[1720015767956,7.32,3323.8,3322.5,0.7705891]
[1720015768166,7.32,3323.8,3322.3,0.28649095]
[1720015768369,7.32,3323.8,3322.1,8.35559422]
[1720015768696,7.32,3323.8,3321.8,1.26919215]
[1720015768697,1.813,3323.7,3321.8,1.26919215]
[1720015769077,1.813,3323.5,3321.8,1.26919215]
[1720015769270,0.55,3323.4,3321.8,1.26919215]
[1720015770273,2.363,3323.5,3321.8,1.26919215]
[1720015770475,3.0,3323.4,3321.8,1.26919215]
[1720015770683,0.55,3323.3,3321.8,1.26919215]
[1720015772382,3.0,3323.5,3321.8,2.26919215]
[1720015772596,3.0,3323.5,3322.0,1.0]
[1720015773008,4.813,3323.7,3322.0,1.0]
[1720015773314,0.55,3323.6,3322.0,1.0]
[1720015773682,0.55,3323.6,3322.0,1.93619422]
[1720015773878,3.0,3323.7,3322.2,1.0]
[1720015774199,3.0,3323.7,3322.3,6.8185]
[1720015774403,3.0,3323.7,3322.3,7.75469422]
[1720015774971,3.0,3323.7,3322.5,1.0]
[1720015776511,3.0,3323.7,3322.5,1.93619422]
[1720015777026,3.0,3323.7,3322.5,0.93643919]
[1720015777382,7.32,3323.8,3322.5,2.10369167]
[1720015777587,7.32,3323.8,3322.8,0.93643919]
[1720015777980,7.32,3323.8,3322.9,0.93643919]
[1720015778415,7.32,3323.8,3323.0,7.80013919]
[1720015778618,7.32,3323.8,3323.2,0.93643919]
[1720015778794,7.32,3323.8,3323.3,0.93643919]
[1720015781096,7.32,3323.8,3323.4,0.93643919]
[1720015783143,7.32,3324.2,3323.4,0.93643919]
[1720015783305,7.32,3324.2,3323.3,0.93643919]
[1720015783507,3.0,3324.1,3323.3,0.93643919]
[1720015784301,3.0,3324.1,3323.2,1.24858558]
[1720015784302,3.0,3324.1,3323.2,0.93643919]
[1720015784908,3.0,3324.1,3323.1,0.93643919]
[1720015785300,3.0,3324.1,3322.9,0.93643919]
[1720015785935,3.0,3324.1,3322.8,0.93643919]
[1720015786245,0.55,3324.0,3322.8,0.93643919]
[1720015786410,0.55,3324.0,3322.6,7.78613919]
[1720015787438,3.0,3324.1,3322.7,0.90347248]
[1720015787661,3.0,3324.1,3322.7,1.83991167]
[1720015788034,3.0,3324.1,3322.9,1.0]
[1720015788555,7.32,3324.2,3322.9,1.0]
[1720015788556,7.32,3324.2,3323.2,7.4022]
[1720015788866,7.32,3324.2,3323.4,1.0]
[1720015789053,7.32,3324.2,3323.5,0.06017033]
[1720015789453,7.32,3324.2,3323.4,1.93643919]
[1720015789753,7.32,3324.2,3323.4,1.99660953]
[1720015790123,7.32,3324.2,3323.4,0.93643919]
[1720015790420,7.32,3324.2,3323.3,1.67665919]
[1720015790615,7.32,3324.2,3323.3,0.93643919]
[1720015790928,7.32,3324.2,3323.1,0.93643919]
[1720015791266,7.32,3324.2,3323.0,0.93643919]
[1720015792553,7.32,3324.2,3322.9,0.93643919]
[1720015792777,3.0,3324.1,3322.8,8.35983919]
[1720015793489,3.0,3324.1,3322.9,2.09026333]
[1720015793655,3.0,3324.1,3322.9,0.9390736]
[1720015795057,3.0,3324.1,3322.8,0.9390736]
[1720015795278,0.55,3324.0,3322.7,0.9390736]
[1720015795480,0.55,3324.0,3322.6,0.9390736]
[1720015795637,0.55,3324.0,3322.5,0.9390736]
[1720015795838,3.55,3324.0,3322.5,0.9390736]
[1720015796061,3.0,3323.9,3322.4,0.9390736]
[1720015796253,0.55,3323.8,3322.4,0.9390736]
[1720015797482,2.363,3323.8,3322.4,0.9390736]
[1720015797686,5.919,3323.8,3322.1,0.9390736]
[1720015797869,9.133,3323.6,3321.9,0.9390736]
[1720015798184,2.363,3323.5,3321.8,2.20826575]
[1720015798578,6.47543573,3323.5,3321.8,2.20826575]
[1720015799678,5.363,3323.5,3321.8,2.20826575]
[1720015799846,5.363,3323.5,3321.8,3.66032273]
[1720015799847,3.55,3323.5,3321.8,3.66032273]
[1720015800041,4.66277203,3323.5,3321.8,3.66032273]
[1720015800491,4.11277203,3323.5,3322.0,8.46160458]
[1720015800783,4.11277203,3323.5,3322.3,1.0]
[1720015800944,3.0,3323.5,3322.3,2.13900032]
[1720015801145,3.0,3323.5,3322.3,0.19992672]
[1720015801375,3.0,3323.5,3322.2,0.9390736]
[1720015801562,3.0,3323.5,3322.0,0.9390736]
[1720015801865,0.55,3323.4,3322.0,0.9390736]
[1720015802045,3.55,3323.4,3322.0,0.9390736]
[1720015802493,3.0,3323.3,3322.0,0.9390736]
[1720015802691,0.55,3323.4,3322.0,0.9390736]
[1720015802865,2.363,3323.4,3322.0,0.9390736]
[1720015803070,2.363,3323.4,3321.9,0.9390736]
[1720015804399,2.363,3323.4,3322.0,1.9390736]
[1720015804400,0.55,3323.4,3322.0,1.9390736]
[1720015804772,0.55,3323.4,3322.1,0.9390736]
[1720015805105,3.0,3323.5,3322.1,0.9390736]
[1720015805271,3.0,3323.5,3322.2,0.9390736]
[1720015805454,3.0,3323.5,3322.2,1.25819077]
[1720015806180,3.0,3323.5,3322.4,1.0]
[1720015807003,3.0,3323.5,3322.2,1.25819077]
[1720015807187,3.0,3323.5,3322.2,0.9390736]
[1720015808036,3.0,3323.5,3321.9,3.07270909]
[1720015808037,3.0,3323.5,3322.1,0.9390736]
[1720015808219,0.55,3323.4,3322.1,0.9390736]
[1720015808394,0.55,3323.4,3321.9,1.25209813]
[1720015808395,0.55,3323.4,3322.0,0.9390736]
[1720015808596,0.55,3323.4,3321.9,0.9390736]
[1720015809331,0.55,3323.4,3322.0,0.9390736]
[1720015809629,0.55,3323.4,3321.9,0.9390736]
[1720015810236,0.55,3323.4,3321.8,2.20826575]
[1720015811645,0.55,3323.4,3321.9,0.9390736]
[1720015811819,0.55,3323.4,3321.9,1.9390736]
[1720015812151,0.55,3323.4,3322.0,0.9401061]
[1720015812646,0.55,3323.4,3322.1,1.0]
[1720015814343,0.55,3323.4,3322.1,1.9401061]
[1720015815455,7.32,3323.6,3322.2,6.8772]
[1720015815616,7.32,3323.6,3322.3,1.00029539]
[1720015815811,7.32,3323.6,3322.4,0.9401061]
[1720015816011,7.32,3323.6,3322.5,2.00029467]
[1720015816236,7.32,3323.6,3322.6,0.20002947]
[1720015816421,7.32,3323.6,3322.5,0.9401061]
[1720015816626,7.32,3323.6,3322.4,0.9401061]
[1720015816853,3.0,3323.5,3322.4,0.9401061]
[1720015819253,3.0,3323.5,3322.5,0.9401061]
[1720015819910,3.0,3323.5,3322.7,1.0]
[1720015820111,3.0,3323.5,3322.8,0.19401061]
[1720015820315,3.0,3323.5,3322.7,0.9401061]
[1720015820716,3.0,3323.5,3322.8,0.9401061]
[1720015821460,3.0,3323.5,3322.6,1.25347481]
[1720015821461,3.0,3323.5,3322.6,0.9401061]
[1720015821834,3.0,3323.5,3322.5,0.9401061]
[1720015822150,3.0,3323.5,3322.4,0.9401061]
[1720015822151,2.668,3323.3,3322.4,0.9401061]
[1720015822348,2.668,3323.3,3321.8,9.60372854]
[1720015822349,3.0,3323.2,3322.1,0.9401061]
[1720015822559,3.0,3323.2,3322.0,0.9401061]
[1720015823732,3.0,3323.2,3321.9,0.9401061]
[1720015823932,2.668,3322.9,3321.9,0.9401061]
[1720015824159,3.0,3322.8,3321.8,2.20929825]
[1720015826173,3.0,3322.8,3321.8,2.55557556]
[1720015826674,3.0,3322.8,3321.8,2.20929825]
[1720015827170,3.0,3322.8,3321.8,1.26919215]
[1720015827171,2.668,3322.5,3321.8,1.26919215]
[1720015827548,3.0,3322.4,3321.8,1.26919215]
[1720015830837,3.0,3322.7,3321.8,1.26919215]
[1720015834948,3.0,3322.7,3321.9,1.0]
[1720015835206,7.32,3322.8,3322.1,1.0]
[1720015835485,7.32,3322.8,3322.2,0.94017631]
[1720015836591,20.57461368,3323.1,3322.3,0.94017631]
[1720015836912,7.32,3323.1,3322.5,8.34057631]
[1720015837186,7.32,3323.4,3322.6,1.89959078]
[1720015838054,3.0,3323.3,3322.7,0.94017631]
[1720015839673,7.32,3323.4,3323.2,0.94017631]
[1720015839866,7.32,3323.9,3323.3,0.94017631]
[1720015840064,7.32,3323.9,3323.5,1.94017631]
[1720015840279,7.32,3323.9,3323.6,0.94017631]
[1720015840854,7.32,3323.9,3323.6,0.93962061]
[1720015841293,7.32,3323.9,3323.5,0.93962061]
[1720015842268,7.32,3323.9,3323.5,1.26488254]
[1720015842495,7.32,3323.9,3323.5,0.32526193]
[1720015842809,7.32,3323.9,3323.5,1.26488254]
[1720015843175,7.32,3323.9,3323.5,0.32526193]
[1720015844771,7.32,3323.9,3323.6,7.15447086]
[1720015845005,7.32,3324.4,3323.8,1.0]
[1720015845208,3.0,3324.5,3323.9,0.06016046]
[1720015845512,3.0,3324.4,3323.9,0.06016046]
[1720015845714,3.0,3324.6,3323.9,0.06016046]
[1720015845915,3.0,3324.6,3324.0,0.19997811]
[1720015846075,3.0,3324.6,3324.1,1.06015913]
[1720015846709,17.57461368,3324.7,3324.1,1.06015913]
[1720015846929,17.57461368,3324.7,3324.2,7.2581]
[1720015847211,17.57461368,3324.7,3324.3,0.0601556]
[1720015848523,3.0,3325.0,3323.8,7.433]
[1720015848684,7.32,3325.1,3323.9,2.02205939]
[1720015849017,3.0,3325.0,3323.9,1.02205939]
[1720015849491,3.0,3325.0,3323.9,2.02205939]
[1720015850825,3.0,3325.0,3324.0,0.06015899]
[1720015851283,3.0,3325.0,3324.2,7.449]
[1720015851477,3.0,3325.0,3324.3,0.90505222]
[1720015852017,7.32,3325.1,3324.5,1.0]
[1720015852190,7.32,3325.1,3324.6,0.06014843]
[1720015852525,17.57461368,3325.5,3324.6,0.06014843]
[1720015853205,17.57461368,3325.5,3324.4,0.99976877]
[1720015853406,3.0,3325.4,3324.5,0.93962061]
[1720015853629,3.0,3325.4,3324.6,0.06014813]
[1720015854388,3.0,3325.4,3324.5,0.93962061]
[1720015854593,3.0,3325.4,3324.4,0.93962061]
[1720015855439,3.0,3325.4,3324.5,0.93962061]
[1720015855591,2.668,3325.3,3324.5,0.93962061]
[1720015855788,2.668,3325.3,3324.2,9.00644049]
[1720015855789,2.668,3324.9,3324.2,0.93962061]
[1720015856019,3.0,3324.8,3324.1,0.93962061]
[1720015857438,3.0,3324.8,3324.2,0.93962061]
[1720015857913,3.0,3325.0,3324.2,0.93962061]
[1720015858303,3.0,3325.0,3324.3,8.18957873]
[1720015858643,3.0,3325.0,3324.5,0.93962061]
[1720015858789,3.0,3325.0,3324.6,0.93962061]
[1720015859295,3.0,3325.0,3324.5,0.93962061]
[1720015859501,3.0,3325.0,3324.4,1.25282749]
[1720015859502,3.0,3325.0,3324.4,0.93962061]
[1720015859717,3.0,3325.0,3324.3,0.93962061]
[1720015860828,3.0,3325.0,3324.3,0.93267879]
[1720015861392,3.0,3325.0,3324.2,1.30373103]
[1720015861722,3.0,3325.0,3324.3,1.24357172]
[1720015861899,3.0,3325.0,3324.4,0.06015521]
[1720015862390,3.0,3325.0,3324.4,1.30372693]
[1720015862595,3.0,3325.0,3324.5,1.24357172]
[1720015862790,3.0,3325.0,3324.5,1.30372449]
[1720015863636,3.0,3325.0,3324.6,1.24357172]
[1720015863930,3.0,3325.0,3324.7,0.06014778]
[1720015864124,3.0,3325.0,3324.6,1.24357172]
[1720015864326,3.0,3325.0,3324.7,0.06014831]
[1720015864495,3.0,3325.0,3324.7,1.30372003]
[1720015865394,7.32,3325.1,3324.9,1.24357172]
[1720015865594,7.32,3325.1,3325.0,1.24357172]
[1720015865789,10.32,3325.1,3325.0,1.24357172]
[1720015866230,10.32,3325.1,3324.8,1.24357172]
[1720015867536,10.32,3325.1,3324.7,1.24357172]
[1720015868131,10.32,3325.1,3324.6,1.24357172]
[1720015868518,10.32,3325.1,3324.7,1.24357172]
[1720015868926,3.0,3325.0,3324.7,1.24357172]
[1720015869461,3.0,3325.0,3324.5,1.24357172]
[1720015869615,3.0,3325.2,3324.5,1.24357172]
[1720015870552,3.0,3325.2,3324.6,0.93160709]
[1720015873351,3.0,3325.2,3324.7,0.93160709]
[1720015873555,8.583493,3325.1,3324.7,0.93160709]
[1720015873723,3.0,3325.0,3324.8,0.93160709]
[1720015873917,3.0,3325.2,3324.8,0.93160709]
[1720015874138,3.0,3325.3,3324.9,0.93160709]
[1720015874338,3.0,3325.3,3325.0,0.93160709]
[1720015875539,3.0,3325.4,3325.0,0.93160709]
[1720015875728,3.0,3325.4,3325.2,0.93160709]
[1720015876358,3.0,3325.4,3325.3,0.93160709]
[1720015876771,6.231506,3325.4,3325.3,0.93160709]
[1720015877067,5.668,3325.4,3325.2,0.93160709]
[1720015877262,21.844877,3325.3,3325.1,0.93160709]
[1720015877442,18.782343,3325.2,3325.1,0.93160709]
[1720015877638,19.29435,3325.2,3325.1,0.14409962]
[1720015877859,19.29435,3325.2,3324.8,1.24357172]
[1720015878065,16.796171,3325.1,3324.7,1.24357172]
[1720015878238,12.948236,3325.0,3324.8,1.24357172]
[1720015878438,3.0,3324.9,3324.7,1.24357172]
[1720015878744,16.472031,3324.8,3324.6,1.24357172]
[1720015878951,16.472031,3324.8,3324.5,1.24357172]
[1720015878952,13.04839,3324.7,3324.5,1.24357172]
[1720015879269,3.0,3324.7,3324.6,1.24357172]
[1720015879474,3.0,3324.7,3324.5,1.24357172]
[1720015879475,17.38408,3324.7,3324.5,1.24357172]
[1720015879684,3.0,3324.7,3324.5,1.24357172]
[1720015879969,3.0,3324.7,3324.3,1.55879939]
[1720015879970,17.53292,3324.6,3324.3,1.24357172]
[1720015880168,2.668,3324.4,3324.3,1.24357172]
[1720015880333,19.585712,3324.4,3324.1,1.55879939]
[1720015880532,19.585712,3324.4,3323.3,6.9563]
[1720015880533,14.78983,3324.3,3324.2,1.2490697]
[1720015880734,15.434528,3324.3,3324.2,1.2490697]
[1720015880940,7.057594,3324.3,3324.2,1.2490697]
[1720015881370,7.057594,3324.3,3324.2,1.55879939]
[1720015881880,7.057594,3324.3,3324.2,1.56219679]
[1720015883025,7.057594,3324.3,3324.1,1.56219679]
[1720015883194,17.838496,3324.2,3324.1,1.56219679]
[1720015883515,17.838496,3324.2,3324.0,1.25131141]
[1720015883516,20.838496,3324.2,3324.0,1.25131141]
[1720015883810,34.09443,3324.1,3323.7,0.78783818]
[1720015883983,26.177725,3324.0,3323.7,0.78783818]
[1720015884189,3.55,3323.9,3323.4,1.56219679]
[1720015884389,2.668,3323.7,3323.5,1.56219679]
[1720015884699,18.385012,3323.6,3323.4,1.56219679]
[1720015884896,11.711933,3323.5,3323.4,1.56219679]
[1720015885220,12.904133,3323.5,3323.4,1.56455911]
[1720015886207,9.656847,3323.5,3323.3,1.56455911]
[1720015886415,3.0,3323.4,3323.2,1.56455911]
[1720015887116,3.0,3323.6,3323.2,1.56455911]
[1720015887276,3.0,3323.6,3323.5,0.93844507]
[1720015887480,5.104342,3323.6,3323.4,0.93844507]
[1720015887683,2.104342,3323.5,3323.4,0.93844507]
[1720015888111,3.0,3323.6,3323.4,0.93844507]
[1720015888419,3.0,3323.6,3323.3,0.93844507]
[1720015888615,3.0,3323.6,3323.2,0.93844507]
[1720015889314,3.0,3323.6,3323.1,0.93844507]
[1720015890415,3.0,3323.6,3322.9,0.93844507]
[1720015891578,3.0,3323.6,3322.7,0.93844507]
[1720015892216,3.0,3323.6,3322.6,0.93844507]
[1720015893323,3.0,3323.6,3322.5,7.4764]
[1720015893781,3.0,3323.6,3322.2,8.14554507]
[1720015893981,2.668,3323.3,3322.2,7.2071]
[1720015894182,3.0,3323.2,3322.2,7.2071]
[1720015895120,3.0,3323.2,3322.3,0.06019412]
[1720015899083,3.0,3323.2,3322.4,1.0]
[1720015899411,3.0,3323.3,3322.5,0.06018446]
[1720015900283,3.0,3323.3,3322.3,0.82672941]
[1720015900502,3.0,3323.3,3322.4,0.06018442]
[1720015902151,3.0,3323.3,3322.2,7.2071]
[1720015903015,3.0,3323.3,3322.2,8.14554507]
[1720015903418,3.0,3323.3,3322.3,0.06018448]
[1720015903627,3.0,3323.3,3322.4,1.0]
[1720015903854,3.0,3323.3,3322.5,0.06018438]
[1720015904878,5.668,3323.3,3322.2,8.14554507]
[1720015905143,5.668,3323.3,3322.2,7.2071]
[1720015905344,5.668,3323.3,3322.1,0.93844507]
[1720015905553,0.55,3323.2,3322.0,0.93844507]
[1720015905861,0.55,3323.2,3321.9,7.0204]
[1720015905862,0.55,3323.2,3322.1,0.06019468]
[1720015907017,5.668,3323.3,3322.1,0.99863975]
[1720015907222,5.668,3323.3,3322.2,1.0]
[1720015907421,5.668,3323.3,3322.3,0.0601906]
[1720015908149,7.32,3323.4,3322.7,0.93844507]
[1720015908350,7.32,3323.4,3322.6,1.24970732]
[1720015908351,7.32,3323.4,3322.9,1.0]
[1720015908554,7.32,3323.4,3323.0,0.06017675]
[1720015908857,7.32,3323.4,3322.9,1.93844507]
[1720015909034,10.25461368,3323.7,3323.1,8.32170458]
[1720015909255,10.25461368,3323.7,3323.3,0.93844507]
[1720015909457,7.32,3324.1,3323.4,0.06016996]
[1720015910475,3.0,3324.0,3323.4,0.06016996]
[1720015910682,3.0,3324.0,3323.2,0.93844507]
[1720015910851,3.0,3324.0,3323.1,8.26164507]
[1720015911039,3.0,3324.0,3323.1,7.3232]
[1720015911572,2.668,3323.9,3323.0,0.93844507]
[1720015911819,2.668,3323.9,3322.8,1.24970732]
[1720015911820,3.0,3323.8,3322.9,0.93844507]
[1720015912083,3.0,3323.8,3322.8,0.93844507]
[1720015912380,3.0,3323.8,3322.7,0.93844507]
[1720015913081,3.0,3323.8,3322.8,0.93844507]
[1720015913279,3.0,3323.8,3322.9,0.06018193]
[1720015913750,3.0,3323.8,3322.8,0.93844507]
[1720015914183,3.0,3323.8,3322.7,0.93844507]
[1720015914390,2.668,3323.5,3322.6,0.93844507]
[1720015914548,3.0,3323.4,3322.5,0.93844507]
[1720015914745,3.0,3323.4,3322.4,0.93844507]
[1720015915946,3.0,3323.4,3322.5,0.06018885]
[1720015916193,3.0,3323.6,3322.5,0.06018885]
[1720015916483,3.0,3323.6,3322.5,0.99863392]
[1720015916684,3.0,3323.6,3322.5,0.93844507]
[1720015918090,3.0,3323.6,3322.4,0.93844507]
[1720015919661,2.668,3323.5,3322.4,0.93844507]
[1720015920001,3.0,3323.4,3322.2,0.93844507]
[1720015920355,3.0,3323.4,3322.3,0.06019456]
[1720015920975,3.0,3323.4,3322.3,7.30209456]
[1720015921356,3.0,3323.4,3321.9,7.2514]
[1720015921653,2.668,3323.0,3321.9,7.2514]
[1720015921886,3.55,3322.9,3321.8,1.26919215]
[1720015922372,2.668,3322.6,3322.3,0.93772544]
[1720015922586,5.906744,3322.5,3322.3,0.93772544]
[1720015922779,10.87,3322.9,3322.3,0.93772544]
[1720015923552,12.68,3322.9,3322.3,0.93772544]
[1720015923789,10.87,3322.9,3322.3,0.93772544]
[1720015925879,3.0,3322.9,3322.3,0.93772544]
[1720015926185,3.0,3322.9,3322.1,0.06019958]
[1720015926399,3.0,3323.1,3322.1,0.77599954]
[1720015927761,3.0,3323.1,3322.1,0.06019958]
[1720015927996,3.0,3323.1,3322.0,0.06019379]
[1720015928357,3.0,3323.1,3322.0,1.06019379]
[1720015928547,3.0,3323.1,3322.0,0.06019379]
[1720015928751,3.0,3323.1,3322.0,1.06019379]
[1720015930682,3.0,3323.1,3321.9,7.0978]
[1720015931356,0.55,3323.0,3321.9,7.0978]
[1720015933308,2.668,3322.8,3321.9,0.94039691]
[1720015933521,3.55,3322.7,3321.8,2.20958906]
[1720015935376,3.55,3322.7,3321.8,1.26919215]
[1720015943008,6.55,3322.7,3321.8,1.26919215]
[1720015946975,2.668,3322.4,3321.8,1.26919215]
[1720015947180,3.55,3322.3,3321.8,1.26919215]
[1720015947586,0.55,3322.3,3321.8,1.26919215]
[1720015947775,0.55,3322.4,3321.8,1.26919215]
[1720015948605,3.0,3322.6,3321.8,1.26919215]
[1720015948606,0.55,3322.5,3321.8,1.26919215]
[1720015951019,2.668,3322.3,3321.8,1.26919215]
[1720015951228,0.55,3322.2,3321.8,1.26919215]
[1720015951394,27.863742,3322.1,3321.8,1.26919215]
[1720015951590,2.668,3321.9,3321.8,1.26919215]
[1720015951804,14.861415,3321.9,3321.8,1.26919215]
[1720015952133,17.861415,3321.9,3321.8,1.26919215]
[1720015952623,13.223559,3321.9,3321.8,1.26919215]
[1720015953727,3.0,3321.9,3321.8,1.26919215]
[1720015953881,3.0,3322.2,3321.8,1.26919215]
[1720015954278,7.32,3322.3,3321.8,1.26919215]
[1720015954520,7.32,3322.3,3321.9,0.0602067]
[1720015954822,7.32,3322.3,3322.0,6.8946]
[1720015955682,7.32,3322.8,3322.0,6.8946]
[1720015956524,7.32,3322.8,3321.8,1.26919215]
[1720015956678,3.55,3322.7,3321.8,1.26919215]
[1720015957144,2.668,3322.5,3321.8,1.26919215]
[1720015957510,3.55,3322.4,3321.8,1.26919215]
[1720015958201,3.0,3322.4,3321.8,1.26919215]
[1720015958636,3.0,3322.4,3321.8,8.29949215]
[1720015962635,3.0,3322.4,3321.8,1.26919215]
[1720015964253,7.32,3322.8,3321.8,1.26919215]
[1720015964254,3.0,3322.7,3321.8,1.26919215]
[1720015964537,0.55,3322.6,3321.8,1.26919215]
[1720015964752,3.0,3322.7,3321.9,0.0602041]
[1720015964964,3.0,3322.7,3322.0,7.2639]
[1720015965245,3.0,3322.7,3322.0,8.20365042]
[1720015965422,3.0,3322.7,3322.1,0.93975042]
[1720015966516,3.0,3322.7,3322.2,0.93975042]
[1720015966757,3.0,3322.7,3322.1,0.93975042]
[1720015968712,5.668,3322.7,3322.1,0.93975042]
[1720015968912,8.668,3322.7,3321.8,2.20894257]
[1720015969225,0.55,3322.6,3321.8,1.26919215]
[1720015969627,5.668,3322.3,3321.8,1.26919215]
[1720015969953,3.0,3322.2,3321.8,1.26919215]
[1720015970512,3.55,3322.6,3321.8,1.26919215]
[1720015970762,0.55,3322.6,3321.8,1.26919215]
[1720015970965,3.55,3322.6,3321.8,1.26919215]
[1720015974445,3.0,3322.6,3321.8,9.06074257]
[1720015975334,3.0,3322.6,3321.9,0.93975042]
[1720015975666,3.0,3322.6,3321.8,9.06074257]
[1720015977454,3.0,3322.6,3321.9,0.93975042]
[1720015978354,2.668,3322.3,3321.8,2.20894257]
[1720015978682,3.0,3322.2,3321.8,2.20894257]
[1720015978880,3.0,3322.2,3321.8,1.26919215]
[1720015979080,3.0,3322.2,3321.8,2.20894257]
[1720015979287,0.55,3322.5,3321.8,2.20894257]
[1720015979643,0.55,3322.5,3321.8,1.26919215]
[1720015980279,0.55,3322.5,3321.8,2.21189498]
[1720015980855,7.32,3322.8,3321.8,2.6189836]
[1720015981059,7.32,3322.8,3322.2,0.94270283]
[1720015981269,7.32,3322.8,3322.2,1.00289629]
[1720015981478,7.32,3322.8,3322.3,0.94270283]
[1720015981972,7.32,3323.2,3322.4,1.00289628]
[1720015982347,7.32,3323.2,3322.5,0.94270283]
[1720015982776,7.32,3323.2,3322.6,0.94270283]